bitfinex-derivatives/quotes_ETHF0:USTF0_20240927
["timestamp","ask_amount","ask_price","bid_price","bid_amount"]
[1727447907309,0.69255934,2689.7,2689.3,0.37167]
[1727447907515,3.57,2689.8,2689.3,0.37167]
[1727447907516,1.32885986,2690.1,2689.6,0.37163]
[1727447907805,0.32086694,2690.0,2689.7,1.2178]
[1727447908006,0.32086694,2689.9,2689.7,1.2178]
[1727447908209,0.32086694,2689.9,2689.5,3.2078]
[1727447908210,4.41006694,2689.9,2689.5,3.2078]
[1727447908506,0.37162,2689.7,2689.2,6.43968]
[1727447908709,3.94162,2689.8,2689.2,6.068]
[1727447909105,0.37158,2690.0,2689.5,3.2078]
[1727447909413,0.37158,2690.0,2689.5,3.5789]
[1727447909414,0.32086347,2689.9,2689.5,3.5789]
[1727447909708,0.37159,2690.0,2689.5,3.95054]
[1727447909909,0.32086165,2689.9,2689.5,3.95054]
[1727447910109,0.32086165,2689.8,2689.6,0.37164]
[1727447910310,0.3716,2689.9,2689.5,3.95054]
[1727447910508,0.3208645,2689.8,2689.7,0.37162]
[1727447910711,0.95727986,2690.3,2689.5,3.5789]
[1727447910903,0.32082122,2690.2,2690.1,0.37156]
[1727447911405,3.94148,2690.8,2690.3,0.37154]
[1727447911604,0.69227514,2690.7,2690.3,0.3711]
[1727447911907,0.32078514,2690.6,2690.3,0.3711]
[1727447912103,7.70637,2691.2,2690.5,3.2078]
[1727447912406,0.69217839,2691.1,2690.6,1.68359]
[1727447912705,0.32073839,2691.0,2690.7,0.37148]
[1727447912911,0.37144,2691.1,2690.6,3.3323]
[1727447913103,0.32072842,2691.0,2690.6,2.9608]
[1727447913300,0.32072457,2690.9,2690.8,3.57927]
[1727447913500,3.57,2691.2,2690.8,3.2078]
[1727447913805,3.94138,2691.5,2690.8,3.5789]
[1727447914106,3.94138,2691.5,2691.0,0.37144]
[1727447914610,3.57,2691.5,2691.1,0.37143]
[1727447914810,3.57,2691.5,2691.0,0.74254]
[1727447915006,3.57,2691.5,2691.1,0.37143]
[1727447915206,3.57,2691.5,2691.1,3.2078]
[1727447915410,3.57,2691.5,2691.2,1.2663]
[1727447915711,3.94138,2691.5,2691.2,1.2663]
[1727447915907,3.94138,2691.5,2691.2,1.6374]
[1727447916113,0.37139,2691.4,2691.2,4.8452]
[1727447916310,3.57,2691.5,2691.2,0.3711]
[1727447916514,3.57,2691.3,2690.9,3.2078]
[1727447916709,3.94144,2691.0,2690.9,3.5789]
[1727447916914,3.94144,2691.0,2690.9,3.2078]
[1727447917308,9.57,2691.0,2690.5,3.2078]
[1727447917512,4.16507986,2690.8,2689.5,3.2078]
[1727447917706,3.57,2689.8,2689.5,3.4959]
[1727447918020,3.2078,2690.2,2689.6,0.37163]
[1727447918213,3.57,2690.3,2689.6,1.5106]
[1727447918403,3.57,2690.0,2689.6,2.7688]
[1727447918914,6.7778,2690.0,2689.6,2.7688]
[1727447919215,3.57,2690.0,2689.6,2.7688]
[1727447919711,3.57,2689.7,2689.6,1.5106]
[1727447919916,3.57,2689.7,2689.2,1.3115]
[1727447920115,3.2078,2689.4,2689.2,1.5996]
[1727447920515,3.57,2689.7,2689.2,1.5996]
[1727447920814,3.94163,2689.7,2689.2,1.5996]
[1727447921013,3.57,2689.7,2689.2,1.5996]
[1727447921212,0.37165,2689.6,2689.2,1.5996]
[1727447921411,3.57,2689.3,2689.2,1.5996]
[1727447921817,3.57,2689.3,2689.2,1.3115]
[1727447922008,3.57,2689.3,2689.2,1.5996]
[1727447922209,6.7778,2689.3,2689.2,1.5996]
[1727447922611,3.2078,2689.7,2689.2,5.318]
[1727447922913,3.2078,2689.7,2689.2,1.5996]
[1727447924024,0.95727986,2690.1,2689.6,3.57]
[1727447924213,2.39319965,2690.6,2689.3,3.7874]
[1727447924214,0.96861282,2690.9,2690.0,3.2078]
[1727447924515,0.96861282,2691.4,2690.1,1.305]
[1727447924713,1.91455972,2691.4,2690.4,3.2078]
[1727447924914,1.91455972,2691.4,2690.1,1.305]
[1727447924915,3.57,2691.4,2690.1,1.305]
[1727447925113,0.37146,2690.9,2690.1,1.305]
[1727447925315,3.2078,2690.6,2690.1,1.305]
[1727447925513,3.2078,2690.3,2689.7,1.2713]
[1727447925708,0.49876412,2690.2,2689.3,3.2078]
[1727447925912,3.57,2690.0,2689.3,3.2078]
[1727447926224,3.57,2690.0,2688.7,1.2495]
[1727447926225,0.31685977,2689.9,2689.0,3.2078]
[1727447926423,3.52465977,2689.9,2689.0,3.2078]
[1727447926720,0.31685977,2689.8,2689.0,3.2078]
[1727447927116,3.57,2689.6,2689.0,3.2078]
[1727447928132,1.2195,2689.7,2689.0,3.2078]
[1727447928824,0.31686721,2689.6,2689.0,3.2078]
[1727447929029,1.2195,2689.7,2689.0,3.2078]
[1727447929324,1.2195,2689.7,2689.3,3.2078]
[1727447929720,12.865,2689.9,2689.3,3.2078]
[1727447929920,0.31678891,2689.8,2689.4,1.2373]
[1727447930127,12.865,2689.9,2689.4,1.2373]
[1727447930420,0.31678979,2689.8,2689.4,1.2373]
[1727447930725,3.57,2689.6,2689.4,1.2373]
[1727447930927,0.37168,2689.3,2688.0,3.2078]
[1727447931119,3.57,2688.1,2687.8,1.2373]
[1727447932327,7.59968,2687.9,2686.9,3.2078]
[1727447932521,4.02,2687.1,2686.5,3.2078]
[1727447932720,4.02,2687.1,2685.8,1.3048]
[1727447932721,4.02,2686.6,2686.4,3.2078]
[1727447933217,4.02,2686.6,2686.2,3.2078]
[1727447933418,1.91455972,2687.6,2686.2,3.2078]
[1727447933419,4.02,2686.9,2686.2,3.2078]
[1727447933724,4.02,2686.9,2686.8,3.2078]
[1727447933917,4.02,2686.9,2685.8,1.3048]
[1727447933918,4.02,2686.9,2686.4,3.2078]
[1727447934614,4.02,2686.6,2686.4,3.2078]
[1727447934928,4.02,2686.9,2686.4,3.2078]
[1727447937830,4.39202,2686.9,2686.4,3.2078]
[1727447938019,4.02,2686.9,2686.4,3.2078]
[1727447938724,3.2078,2687.5,2686.4,3.2078]
[1727447938725,4.02,2687.3,2686.4,3.2078]
[1727447938934,4.02,2687.7,2686.7,3.2078]
[1727447939131,4.02,2687.7,2687.0,3.2078]
[1727447939321,4.02,2687.3,2686.3,3.2078]
[1727447939525,3.2078,2687.8,2685.3,1.2924]
[1727447939526,4.02,2686.4,2685.3,1.2924]
[1727447939718,3.2078,2686.6,2685.3,4.5002]
[1727447939921,3.2078,2686.3,2685.3,4.5002]
[1727447940126,3.2078,2686.6,2685.6,3.2078]
[1727447940319,3.2078,2686.6,2685.9,3.2078]
[1727447940525,3.57981,2687.0,2685.9,3.2078]
[1727447940725,3.2078,2687.0,2685.9,3.2078]
[1727447940927,3.2078,2687.0,2685.7,1.3361]
[1727447940928,3.2078,2687.0,2686.2,3.2078]
[1727447941132,3.2078,2687.0,2685.9,3.2078]
[1727447941332,0.37202,2686.8,2685.7,1.3361]
[1727447941531,4.02,2686.5,2685.7,1.3361]
[1727447941835,3.2078,2686.7,2685.8,3.2078]
[1727447942036,3.2078,2686.7,2685.7,1.3361]
[1727447943328,3.57984,2686.7,2685.7,1.3361]
[1727447943520,3.2078,2686.7,2685.7,1.3361]
[1727447943723,3.57984,2686.7,2685.7,1.3361]
[1727447943925,3.2078,2686.7,2685.7,1.3361]
[1727447944129,3.57985,2686.7,2685.7,1.3361]
[1727447944335,3.57984,2686.7,2685.7,1.3361]
[1727447944524,3.2078,2686.7,2685.7,1.3361]
[1727447944726,3.2078,2686.4,2685.9,3.2078]
[1727447945143,3.2078,2686.1,2685.7,1.3361]
[1727447945823,3.2078,2686.1,2685.7,4.5439]
[1727447946021,3.2078,2685.8,2685.3,1.2924]
[1727447946223,3.2078,2685.4,2685.3,1.2924]
[1727447946832,0.37218,2685.7,2685.3,1.2924]
[1727447946833,3.2078,2685.7,2685.3,1.2924]
[1727447947425,3.57998,2685.7,2685.3,1.2924]
[1727447947634,3.2078,2685.7,2685.3,1.2924]
[1727447948633,3.2078,2685.7,2685.4,3.724]
[1727447948930,3.2078,2686.6,2685.5,3.2078]
[1727447949133,3.57985,2686.6,2685.5,5.8174]
[1727447949330,3.2078,2686.3,2685.5,5.8174]
[1727447949831,3.2078,2686.3,2685.5,4.4907]
[1727447950034,3.2078,2686.0,2685.5,1.2829]
[1727447950432,0.37215,2685.9,2685.3,1.2924]
[1727447950632,3.2078,2685.7,2685.3,1.2924]
[1727447950831,0.37221,2685.5,2685.3,1.2924]
[1727447951130,0.37224,2685.2,2684.8,1.2697]
[1727447951326,3.2078,2685.1,2684.8,1.2697]
[1727447951528,3.58006,2685.1,2684.6,1.2861]
[1727447951728,3.2078,2685.1,2684.6,1.2861]
[1727447952124,3.58006,2685.1,2684.6,1.2861]
[1727447952524,0.37227,2685.0,2684.6,1.2861]
[1727447952728,3.2078,2685.1,2684.6,1.2861]
[1727447953431,3.2078,2685.0,2684.6,1.2861]
[1727447953838,7.2278,2685.0,2684.0,5.7191]
[1727447954132,0.37233,2684.6,2684.0,5.7664]
[1727447954536,3.2078,2684.7,2684.0,5.7664]
[1727447954936,3.2078,2684.7,2684.0,6.13881]
[1727447955138,7.60008,2685.0,2684.0,6.13881]
[1727447955338,0.37229,2684.9,2684.0,5.7664]
[1727447955535,3.2078,2685.0,2684.2,0.37237]
[1727447955840,3.58008,2685.0,2684.2,3.2078]
[1727447956042,3.2078,2685.0,2684.2,3.2078]
[1727447956339,3.58004,2685.3,2684.5,3.2078]
[1727447956537,3.2078,2685.3,2684.6,3.2078]
[1727447956838,0.37227,2685.0,2684.2,1.2622]
[1727447957145,0.37231,2684.8,2684.2,1.2622]
[1727447957341,3.2078,2685.0,2684.2,1.2622]
[1727447957539,3.2078,2685.0,2684.1,3.2078]
[1727447958138,0.37233,2684.6,2684.1,3.2078]
[1727447958339,3.58012,2684.7,2684.1,3.2078]
[1727447958544,3.2078,2684.7,2684.1,3.2078]
[1727447959038,1.252,2685.3,2684.1,3.2078]
[1727447959039,3.2078,2685.0,2684.1,3.2078]
[1727447959243,0.37231,2684.8,2684.4,3.2078]
[1727447959443,0.37229,2684.9,2684.4,3.2078]
[1727447959945,3.2078,2685.0,2684.1,3.2078]
[1727447959946,0.3723,2684.8,2684.1,3.2078]
[1727447960139,0.37229,2684.9,2684.1,3.58019]
[1727447960539,0.37231,2684.8,2684.1,3.2078]
[1727447960749,7.2278,2685.0,2684.1,3.2078]
[1727447960943,0.37234,2684.5,2684.1,3.2078]
[1727447961543,4.02,2684.2,2684.0,1.2889]
[1727447961745,4.02,2684.2,2683.5,4.4607]
[1727447961746,0.37241,2684.0,2683.3,0.3725]
[1727447961944,22.89239,2684.2,2683.6,1.2115]
[1727447962245,18.87238,2684.2,2683.6,1.58396]
[1727447962454,18.87238,2684.2,2683.6,1.2115]
[1727447962455,18.5,2684.2,2683.6,1.2115]
[1727447962950,18.5,2684.2,2683.8,0.37243]
[1727447963454,3.2078,2684.3,2683.8,0.37243]
[1727447963841,3.2078,2684.3,2683.7,1.2737]
[1727447964045,0.37238,2684.2,2683.7,1.2737]
[1727447964349,3.2078,2684.3,2683.7,1.2737]
[1727447964647,0.37243,2683.9,2683.7,1.2737]
[1727447964840,0.37241,2684.0,2683.7,1.2737]
[1727447965045,4.3924,2684.1,2683.7,1.2737]
[1727447965250,0.3724,2684.1,2683.7,1.2737]
[1727447965448,18.5,2684.2,2683.7,1.2737]
[1727447965649,18.87238,2684.2,2683.7,1.2737]
[1727447966147,3.2078,2684.3,2683.8,0.37242]
[1727447966348,3.2078,2684.3,2683.7,1.2737]
[1727447966543,0.37236,2684.4,2683.7,1.2737]
[1727447966742,0.37236,2684.4,2683.9,0.37241]
[1727447966941,0.37234,2684.5,2683.9,0.37241]
[1727447967140,25.66012,2684.7,2684.1,0.37238]
[1727447967344,25.66012,2684.7,2684.3,0.37235]
[1727447967345,6.7878,2684.7,2684.3,0.37235]
[1727447967549,3.2078,2684.7,2684.4,1.2712]
[1727447967948,3.2078,2684.7,2684.4,1.64355]
[1727447968149,3.58011,2684.7,2684.4,1.2712]
[1727447968356,3.2078,2684.7,2684.4,1.2712]
[1727447968751,3.2078,2685.2,2684.5,6.9326]
[1727447968947,3.2078,2685.2,2684.5,5.00123]
[1727447969453,3.2078,2685.2,2684.5,4.6289]
[1727447969454,0.37227,2685.0,2684.5,4.6289]
[1727447969650,3.2078,2685.2,2684.5,4.6289]
[1727447969651,0.37226,2685.1,2684.7,0.37231]
[1727447970054,0.55908,2686.4,2685.5,3.2078]
[1727447970250,3.2078,2687.8,2686.3,3.2078]
[1727447970451,3.58,2686.7,2686.3,3.2078]
[1727447970757,3.58,2686.5,2685.8,3.2078]
[1727447971055,3.2078,2686.4,2685.6,2.8162]
[1727447971360,3.58,2686.5,2685.8,3.2078]
[1727447971561,3.58,2686.1,2685.8,3.2078]
[1727447971856,3.58,2686.5,2685.8,3.2078]
[1727447972562,3.4223,2687.0,2686.1,3.2078]
[1727447972563,4.02,2686.8,2686.1,3.2078]
[1727447972853,3.2078,2686.9,2686.1,3.2078]
[1727447972854,4.02,2686.4,2686.1,3.2078]
[1727447974757,4.02,2686.4,2685.8,3.2078]
[1727447975557,4.02,2686.4,2686.3,3.2078]
[1727447976761,4.02,2686.7,2686.3,3.2078]
[1727447977565,4.02,2686.7,2686.4,1.4023]
[1727447978069,4.02,2687.1,2686.4,1.4023]
[1727447979157,4.02,2686.7,2686.4,1.4023]
[1727447979558,4.02,2686.7,2685.9,3.2078]
[1727447979757,4.02,2686.4,2685.9,3.2078]
[1727447979973,4.02,2686.4,2686.3,3.2078]
[1727447980159,4.02,2686.4,2685.8,3.2078]
[1727447981360,7.2278,2686.4,2685.8,3.2078]
[1727447981557,4.02,2686.0,2685.7,1.4023]
[1727447984865,4.02,2686.4,2685.9,3.2078]
[1727447986468,4.02,2686.4,2685.9,3.57994]
[1727447986668,4.02,2686.4,2686.2,3.2078]
[1727447987165,4.02,2686.4,2685.9,3.2078]
[1727447987166,3.7224,2686.3,2685.9,3.2078]
[1727447987366,4.02,2685.9,2685.6,3.2078]
[1727447987760,5.3342,2685.9,2685.6,3.2078]
[1727447988465,4.02,2685.9,2685.6,3.2078]
[1727447988658,4.02,2686.2,2685.7,4.09536]
[1727447988857,4.02,2686.2,2686.0,3.2078]
[1727447989471,7.2278,2686.6,2686.0,3.2078]
[1727447990070,7.2278,2686.6,2686.0,3.57992]
[1727447990369,3.2078,2686.6,2686.2,0.3721]
[1727447990567,3.2078,2686.6,2686.1,0.37211]
[1727447990773,3.2078,2686.6,2686.2,0.37209]
[1727447990972,4.02,2686.9,2686.4,3.2078]
[1727447991267,4.02,2686.9,2686.5,0.37206]
[1727447991572,4.02,2686.9,2686.5,1.4129]
[1727447991868,4.02,2686.9,2686.5,1.78495]
[1727447992068,4.02,2686.9,2686.5,1.4129]
[1727447992275,4.39201,2686.9,2686.5,1.4129]
[1727447992980,4.02,2686.9,2686.5,1.4129]
[1727447993570,4.02,2686.9,2686.7,3.2078]
[1727447993974,4.39201,2686.9,2686.5,1.4129]
[1727447994167,4.02,2686.9,2686.5,1.4129]
[1727447994368,3.57,2686.6,2686.5,1.4129]
[1727447994773,3.57,2686.6,2686.4,3.2078]
[1727447995465,3.57,2686.9,2686.5,0.37205]
[1727447995873,3.57,2686.9,2686.4,3.2078]
[1727447996065,3.57,2686.9,2686.5,0.37205]
[1727447996672,3.57,2686.9,2686.6,0.37204]
[1727447996872,3.57,2686.9,2686.7,0.37203]
[1727447997179,3.57,2686.9,2686.4,3.2078]
[1727447997382,3.57,2686.9,2686.4,3.57987]
[1727447997673,5.8447,2687.3,2686.6,0.37203]
[1727447997674,3.57,2687.2,2686.6,0.37203]
[1727447997867,3.57,2687.2,2686.7,1.3896]
[1727447998264,3.94197,2687.2,2686.7,1.3896]
[1727447998466,3.57,2687.2,2686.7,1.3896]
[1727447998670,3.57,2686.9,2686.7,4.5974]
[1727447999363,3.57,2686.9,2686.7,1.3896]
[1727447999671,3.57,2686.9,2686.4,3.2078]
[1727448000271,3.57,2686.9,2686.4,3.57987]
[1727448000466,3.57,2686.9,2686.7,3.2078]
[1727448001775,3.2078,2687.3,2686.7,3.2078]
[1727448001776,3.94198,2687.1,2686.7,3.2078]
[1727448001972,3.57,2686.8,2686.2,1.4871]
[1727448002282,3.57,2686.4,2686.2,1.4871]
[1727448002582,0.37209,2686.3,2686.0,3.2078]
[1727448002766,3.94211,2686.1,2686.0,3.2078]
[1727448002973,0.37217,2685.7,2685.6,3.2078]
[1727448003173,0.37219,2685.6,2685.2,3.2078]
[1727448003369,3.57,2685.3,2685.0,0.01]
[1727448003679,3.57,2685.6,2685.0,0.38226]
[1727448003874,3.57,2685.6,2685.1,0.37225]
[1727448004067,3.57,2685.6,2685.2,3.2078]
[1727448004482,3.9422,2685.6,2685.2,3.2078]
[1727448004785,3.57,2685.6,2685.2,3.2078]
[1727448005572,3.94218,2685.6,2685.2,3.2078]
[1727448005972,3.57,2685.6,2685.2,3.2078]
[1727448006185,0.37221,2685.5,2685.2,3.2078]
[1727448006374,3.57,2685.6,2685.2,3.2078]
[1727448006569,0.37221,2685.5,2685.2,3.2078]
[1727448006977,0.37221,2685.4,2685.2,3.2078]
[1727448007281,0.37222,2685.4,2685.2,3.2078]
[1727448007479,3.94223,2685.3,2685.2,3.2078]
[1727448007676,3.57,2685.3,2685.0,0.01]
[1727448008082,0.37225,2685.1,2685.0,0.01]
[1727448008585,4.09625,2685.1,2685.0,0.01]
[1727448011279,4.41337106,2685.1,2685.0,0.01]
[1727448011471,11.34401106,2685.1,2685.0,0.01]
[1727448011673,10.09625,2685.1,2685.0,0.01]
[1727448011871,4.41331999,2685.1,2685.0,0.01]
[1727448012071,5.02689,2685.1,2685.0,0.01]
[1727448012273,4.41331574,2685.1,2685.0,0.01]
[1727448013072,5.90661574,2685.1,2685.0,0.01]
[1727448013283,0.68931574,2685.1,2685.0,0.01]
[1727448013477,0.31706574,2685.1,2685.0,0.01]
[1727448013680,1.4933,2685.5,2685.0,0.01]
[1727448013872,4.50047,2685.6,2685.0,0.01]
[1727448013873,0.37223,2685.3,2685.0,0.01]
[1727448014076,0.37222,2685.4,2685.0,3.2178]
[1727448014276,0.37224,2685.2,2685.0,3.2178]
[1727448014677,0.9305,2685.5,2685.0,3.2178]
[1727448014890,0.37223,2685.3,2685.0,3.2178]
[1727448015079,0.37222,2685.4,2685.0,3.2178]
[1727448015278,3.57,2685.6,2685.3,3.2078]
[1727448016085,3.94216,2685.9,2685.3,3.2078]
[1727448016385,3.94216,2685.9,2685.4,1.3954]
[1727448016386,0.37217,2685.7,2685.4,1.3954]
[1727448016585,0.37219,2685.6,2685.4,1.3954]
[1727448016892,3.57,2685.9,2685.4,1.3954]
[1727448017182,0.31727828,2685.8,2685.4,1.3954]
[1727448017380,3.57,2685.9,2685.7,3.2078]
[1727448017584,3.57,2685.9,2685.4,4.6032]
[1727448017981,3.94205,2686.6,2685.7,3.2078]
[1727448018185,0.31716326,2686.5,2686.0,3.2078]
[1727448018486,0.37205,2686.6,2686.0,3.2078]
[1727448018691,0.37204,2686.7,2686.0,3.57992]
[1727448018983,0.37207,2686.4,2686.0,3.2078]
[1727448019379,0.37206,2686.5,2686.0,3.2078]
[1727448020592,3.57,2686.6,2686.0,3.2078]
[1727448020792,0.68925307,2686.5,2686.0,3.2078]
[1727448020984,0.37209,2686.3,2686.0,3.2078]
[1727448021589,3.57,2686.6,2686.0,3.2078]
[1727448021790,0.31719604,2686.5,2686.0,3.2078]
[1727448021982,0.31719604,2686.4,2686.0,3.2078]
[1727448022291,0.37208,2686.4,2686.0,3.2078]
[1727448022678,7.10185329,2686.9,2686.1,3.7224]
[1727448022884,0.31720051,2686.8,2686.3,3.2078]
[1727448023086,3.57,2686.9,2686.4,1.76366]
[1727448023285,3.57,2686.9,2686.5,0.37205]
[1727448023484,3.57,2686.9,2686.4,1.76367]
[1727448023683,3.57,2686.9,2686.5,0.37206]
[1727448023979,6.7778,2687.3,2686.6,3.2078]
[1727448024196,0.68909191,2687.2,2686.6,3.57984]
[1727448024488,3.57,2687.3,2686.6,3.2078]
[1727448024489,0.31708657,2687.1,2686.6,3.2078]
[1727448024694,4.4999,2687.3,2686.6,3.2078]
[1727448024990,0.31710384,2687.2,2686.7,0.37203]
[1727448025178,0.37196,2687.2,2686.7,0.37203]
[1727448025379,3.57,2687.3,2686.6,3.2078]
[1727448025583,0.31707008,2687.2,2686.6,3.2078]
[1727448025795,0.37196,2687.2,2686.6,3.2078]
[1727448026297,0.37198,2687.1,2686.6,3.2078]
[1727448026486,0.37198,2687.1,2686.6,3.57984]
[1727448026885,0.37197,2687.2,2686.7,0.37203]
[1727448027085,0.37197,2687.2,2686.6,3.57984]
[1727448027383,0.37198,2687.1,2686.6,3.57984]
[1727448027795,0.37197,2687.2,2686.7,0.37203]
[1727448028489,0.37199,2687.0,2686.6,3.2078]
[1727448028689,3.57,2687.3,2686.9,3.2078]
[1727448028690,0.37196,2687.2,2686.9,3.2078]
[1727448028889,0.37196,2687.2,2687.0,1.4065]
[1727448029086,0.37198,2687.1,2687.0,1.4065]
[1727448029291,0.37197,2687.2,2687.0,1.4065]
[1727448029592,0.37198,2687.1,2687.0,1.4065]
[1727448030402,0.37203,2686.8,2686.6,3.2078]
[1727448030592,0.37203,2686.7,2686.6,3.2078]
[1727448031093,3.57,2687.2,2686.6,3.2078]
[1727448031295,0.37199,2687.0,2686.6,3.2078]
[1727448031592,0.3276654,2687.4,2686.6,3.2078]
[1727448031593,1.2575154,2687.4,2686.6,3.2078]
[1727448031797,0.37196,2687.2,2686.7,0.37202]
[1727448031989,4.49982,2687.5,2686.6,3.2078]
[1727448032184,0.31682698,2687.4,2686.6,3.2078]
[1727448032394,0.31682698,2687.3,2686.6,3.2078]
[1727448032696,0.37194,2687.4,2686.6,3.2078]
[1727448032884,0.31677695,2687.3,2686.7,0.37203]
[1727448033084,0.31677695,2687.3,2686.9,3.2078]
[1727448033085,0.37196,2687.3,2686.9,3.2078]
[1727448033303,4.82608651,2687.5,2686.9,3.2078]
[1727448033304,4.49982,2687.5,2686.9,3.2078]
[1727448033489,0.68868603,2687.4,2687.0,1.4598]
[1727448033690,0.37194,2687.4,2687.0,1.4598]
[1727448033888,3.94193,2687.5,2687.0,1.83179]
[1727448034088,0.31673168,2687.4,2687.1,0.37197]
[1727448034293,2.85488815,2687.9,2687.2,8.3814]
[1727448034294,0.92969,2687.9,2687.2,8.3814]
[1727448034496,0.31667865,2687.8,2687.2,4.6598]
[1727448034795,0.92964,2688.0,2687.2,1.452]
[1727448034997,0.31662894,2687.9,2687.2,1.452]
[1727448035190,0.37194,2687.4,2687.2,1.452]
[1727448035588,0.92974,2687.7,2687.2,1.452]
[1727448035795,0.37193,2687.5,2687.2,1.452]
[1727448036500,0.37194,2687.4,2687.2,1.452]
[1727448036708,0.37195,2687.3,2687.2,1.452]
[1727448037497,3.94193,2687.5,2687.2,1.452]
[1727448037901,0.92973,2687.8,2687.2,1.82396]
[1727448037902,0.37191,2687.7,2687.2,1.82396]
[1727448038394,3.94188,2687.8,2687.3,0.37194]
[1727448038694,0.37191,2687.6,2687.2,1.452]
[1727448038900,0.37189,2687.7,2687.2,1.82395]
[1727448039393,0.37191,2687.6,2687.2,1.452]
[1727448039596,0.37193,2687.5,2687.2,1.452]
[1727448039902,0.37194,2687.4,2687.2,1.452]
[1727448040103,0.92991,2687.2,2686.7,3.2078]
[1727448040297,0.92991,2687.2,2686.1,0.93027]
[1727448040298,0.37202,2686.8,2686.6,1.4463]
[1727448040491,3.57,2687.2,2686.6,1.4463]
[1727448040492,0.37203,2686.7,2686.6,1.4463]
[1727448040796,0.37208,2686.4,2686.2,1.5335]
[1727448040989,3.2078,2687.1,2686.0,1.4463]
[1727448040990,0.37209,2686.3,2686.0,1.4463]
[1727448041190,3.57,2686.5,2686.0,1.4463]
[1727448041397,0.37209,2686.3,2686.0,1.4463]
[1727448041594,0.37205,2686.6,2686.0,1.4463]
[1727448041802,5.60244,2686.9,2686.0,1.4463]
[1727448041803,0.37204,2686.7,2686.1,1.5351]
[1727448041995,0.37204,2686.7,2686.1,1.9072]
[1727448042198,0.37205,2686.6,2686.1,1.9072]
[1727448042702,3.57,2686.9,2686.1,5.2575]
[1727448042899,0.372,2687.0,2686.2,3.2078]
[1727448043207,1.4039,2687.1,2686.4,0.37206]
[1727448043416,1.4039,2687.1,2686.2,3.2078]
[1727448043608,0.37202,2686.8,2686.3,0.37208]
[1727448043808,0.37203,2686.8,2686.3,0.37208]
[1727448043999,0.37204,2686.7,2686.2,3.2078]
[1727448044301,1.4039,2687.1,2686.2,3.2078]
[1727448044302,4.50002,2686.9,2686.2,3.2078]
[1727448044601,0.37209,2686.3,2686.2,3.2078]
[1727448045105,0.37216,2685.8,2685.2,3.58003]
[1727448045308,0.37216,2685.8,2685.4,1.5007]
[1727448045516,0.37216,2685.8,2685.7,3.2078]
[1727448045804,0.37215,2685.9,2685.4,1.87291]
[1727448046007,0.37215,2685.9,2685.4,1.5007]
[1727448046205,0.37216,2685.8,2685.4,1.5007]
[1727448046606,4.9635,2686.3,2685.4,1.5007]
[1727448046808,0.37216,2685.8,2685.4,1.5007]
[1727448047313,4.50012,2686.6,2685.7,3.57996]
[1727448047511,0.93026,2686.2,2685.8,1.4872]
[1727448047808,0.3722,2685.5,2685.4,1.5007]
[1727448048010,4.50035,2686.0,2685.4,1.5007]
[1727448048011,3.57,2686.0,2685.4,1.5007]
[1727448048209,0.3722,2685.5,2685.4,1.5007]
[1727448048407,0.3722,2685.5,2685.3,3.2078]
[1727448048709,0.3722,2685.5,2685.1,1.4872]
[1727448048710,0.37221,2685.5,2685.1,1.4872]
[1727448048903,3.57,2685.7,2685.3,3.2078]
[1727448049110,0.37219,2685.6,2685.3,3.2078]
[1727448049416,1.4646,2685.9,2685.3,3.2078]
[1727448049417,0.3722,2685.5,2685.3,3.2078]
[1727448049709,1.4646,2685.9,2685.1,1.4872]
[1727448049910,0.31666464,2685.8,2685.1,1.4872]
[1727448050105,0.37218,2685.6,2685.1,1.4872]
[1727448050307,0.3722,2685.5,2685.1,1.4872]
[1727448050504,0.37221,2685.5,2685.1,1.4872]
[1727448050711,0.3722,2685.5,2685.1,1.4872]
[1727448050917,0.37222,2685.4,2685.1,1.4872]
[1727448051102,0.37224,2685.2,2685.1,4.695]
[1727448051304,0.93047,2685.6,2685.0,1.4366]
[1727448051501,0.37223,2685.3,2685.0,0.01]
[1727448051707,0.37224,2685.2,2685.0,0.01]
[1727448051915,0.37223,2685.3,2685.0,0.01]
[1727448052614,0.93047,2685.6,2685.0,0.01]
[1727448052814,0.37223,2685.3,2685.0,0.01]
[1727448053319,0.3722,2685.5,2685.0,3.2178]
[1727448053511,3.57,2685.7,2685.0,3.2178]
[1727448053707,0.37222,2685.4,2685.0,3.2178]
[1727448054214,3.57,2685.7,2685.0,0.01]
[1727448054420,0.9305,2685.5,2685.0,0.01]
[1727448054625,0.37225,2685.1,2685.0,0.01]
[1727448055419,0.37225,2685.2,2685.0,0.01]
[1727448055620,0.37225,2685.1,2685.0,0.01]
[1727448056018,0.37223,2685.3,2685.0,0.01]
[1727448056422,0.37224,2685.2,2685.0,0.01]
[1727448056622,0.37223,2685.3,2685.0,0.01]
[1727448056819,0.37224,2685.2,2685.0,0.01]
[1727448057015,0.37223,2685.3,2685.0,0.01]
[1727448057416,0.37222,2685.4,2685.0,0.01]
[1727448057924,3.2078,2685.5,2685.0,0.01]
[1727448058217,0.37224,2685.3,2685.0,0.01]
[1727448058429,3.2078,2685.5,2685.0,0.01]